[Event "Titled Tuesday Blitz January 17 Early 2023"]
[White "Bluebaum, Matthias"]
[Black "Aloma Vidal, Robert"]
[WhiteFideId "24651516"]
[BlackFideId "2260409"]
[WhiteElo "2669"]
[BlackElo "2442"]
[Result "1-0"]
[Round "02"]
[TimeControl "180+2"]
[Date "2023.01.17"]
[WhiteClock "0:01:07"]
[BlackClock "0:00:02"]

1. d4 {[%clk 0:03:00]}  d5 {[%clk 0:03:00]} 2. c4 {[%clk 0:03:01]}  c6 {[%clk 0:03:01]} 3. Nf3 {[%clk 0:03:01]}  Nf6 {[%clk 0:03:01]} 4. Nc3 {[%clk 0:03:02]}  e6 {[%clk 0:03:02]} 5. Qc2 {[%clk 0:03:02]}  dxc4 {[%clk 0:02:59]} 6. e4 {[%clk 0:03:03]}  b5 {[%clk 0:02:59]} 7. Be2 {[%clk 0:03:03]}  Nbd7 {[%clk 0:02:57]} 8. O-O {[%clk 0:03:04]}  Bb7 {[%clk 0:02:57]} 9. b3 {[%clk 0:03:04]}  cxb3 {[%clk 0:02:56]} 10. axb3 {[%clk 0:03:05]}  b4 {[%clk 0:02:07]} 11. Na4 {[%clk 0:02:56]}  Be7 {[%clk 0:01:58]} 12. Bf4 {[%clk 0:02:48]}  O-O {[%clk 0:01:56]} 13. Nc5 {[%clk 0:02:48]}  Nxc5 {[%clk 0:01:55]} 14. dxc5 {[%clk 0:02:49]}  a5 {[%clk 0:01:48]} 15. Rfd1 {[%clk 0:02:49]}  Qc8 {[%clk 0:01:48]} 16. Bd6 {[%clk 0:02:44]}  Re8 {[%clk 0:01:42]} 17. e5 {[%clk 0:02:39]}  Nd5 {[%clk 0:01:41]} 18. Bxe7 {[%clk 0:02:39]}  Nxe7 {[%clk 0:01:40]} 19. Ng5 {[%clk 0:02:40]}  Ng6 {[%clk 0:01:40]} 20. h4 {[%clk 0:02:38]}  Qc7 {[%clk 0:01:15]} 21. f4 {[%clk 0:02:20]}  Nf8 {[%clk 0:01:11]} 22. h5 {[%clk 0:02:12]}  h6 {[%clk 0:01:05]} 23. Ne4 {[%clk 0:02:13]}  Ba6 {[%clk 0:01:02]} 24. Bxa6 {[%clk 0:02:12]}  Rxa6 {[%clk 0:01:02]} 25. g4 {[%clk 0:02:01]}  a4 {[%clk 0:00:54]} 26. Rxa4 {[%clk 0:01:53]}  Rxa4 {[%clk 0:00:53]} 27. bxa4 {[%clk 0:01:54]}  Rb8 {[%clk 0:00:52]} 28. Rb1 {[%clk 0:01:53]}  Qa5 {[%clk 0:00:36]} 29. Qb3 {[%clk 0:01:48]}  Qa6 {[%clk 0:00:35]} 30. Kf2 {[%clk 0:01:41]}  Rd8 {[%clk 0:00:31]} 31. Nd6 {[%clk 0:01:41]}  Nd7 {[%clk 0:00:30]} 32. Rc1 {[%clk 0:01:27]}  Qa7 {[%clk 0:00:24]} 33. Ne4 {[%clk 0:01:23]}  Nf8 {[%clk 0:00:14]} 34. Rd1 {[%clk 0:01:23]}  Rd5 {[%clk 0:00:13]} 35. g5 {[%clk 0:01:23]}  hxg5 {[%clk 0:00:11]} 36. h6 {[%clk 0:01:20]}  Ng6 {[%clk 0:00:09]} 37. hxg7 {[%clk 0:01:19]}  Kxg7 {[%clk 0:00:09]} 38. Rh1 {[%clk 0:01:10]}  Nxf4 {[%clk 0:00:07]} 39. Qg3 {[%clk 0:01:10]}  Rxe5 {[%clk 0:00:03]} 40. Qh2 {[%clk 0:01:10]}  Kf8 {[%clk 0:00:03]} 41. Qh8+ {[%clk 0:01:09]}  Ke7 {[%clk 0:00:03]} 42. Qf6+ {[%clk 0:01:07]}  Kd7 {[%clk 0:00:02]} 43. Qxf7+ {[%clk 0:01:07]}  Kc8 {[%clk 0:00:02]} 44. Rh8# {[%clk 0:01:07]} 1-0


[Site "https://www.chess.com"]

[Event "Titled Tuesday Blitz January 17 Early 2023"]
[White "Gabdrakhmanov, Azat"]
[Black "Bortnyk, Olexandr"]
[WhiteFideId "34189197"]
[BlackFideId "14120828"]
[WhiteElo "2316"]
[BlackElo "2605"]
[Result "0-1"]
[Round "02"]
[TimeControl "180+2"]
[Date "2023.01.17"]
[WhiteClock "0:00:04"]
[BlackClock "0:00:31"]

1. e4 {[%clk 0:03:00]}  Nf6 {[%clk 0:02:59]} 2. e5 {[%clk 0:03:00]}  Nd5 {[%clk 0:02:59]} 3. d4 {[%clk 0:03:01]}  d6 {[%clk 0:03:00]} 4. Nf3 {[%clk 0:03:01]}  dxe5 {[%clk 0:03:00]} 5. Nxe5 {[%clk 0:03:02]}  c6 {[%clk 0:03:01]} 6. Be2 {[%clk 0:03:02]}  Bf5 {[%clk 0:03:01]} 7. O-O {[%clk 0:03:02]}  Nd7 {[%clk 0:03:02]} 8. Nd3 {[%clk 0:03:00]}  e6 {[%clk 0:03:02]} 9. c4 {[%clk 0:02:58]}  N5f6 {[%clk 0:03:02]} 10. Bf4 {[%clk 0:02:56]}  Be7 {[%clk 0:03:01]} 11. Nc3 {[%clk 0:02:53]}  O-O {[%clk 0:03:01]} 12. Qb3 {[%clk 0:02:49]}  Qb6 {[%clk 0:02:59]} 13. Rfd1 {[%clk 0:02:44]}  h6 {[%clk 0:02:47]} 14. Ne5 {[%clk 0:02:23]}  Rfd8 {[%clk 0:02:42]} 15. Rd2 {[%clk 0:01:50]}  Nxe5 {[%clk 0:02:36]} 16. Bxe5 {[%clk 0:01:43]}  Qxb3 {[%clk 0:02:33]} 17. axb3 {[%clk 0:01:42]}  Bb4 {[%clk 0:02:34]} 18. Bd3 {[%clk 0:01:28]}  Bxd3 {[%clk 0:02:28]} 19. Rxd3 {[%clk 0:01:29]}  Nd7 {[%clk 0:02:28]} 20. Bc7 {[%clk 0:01:23]}  Nc5 {[%clk 0:02:28]} 21. Bxd8 {[%clk 0:01:03]}  Nxd3 {[%clk 0:02:28]} 22. Ba5 {[%clk 0:01:04]}  Bxa5 {[%clk 0:02:25]} 23. Rxa5 {[%clk 0:01:05]}  Nxb2 {[%clk 0:02:25]} 24. d5 {[%clk 0:01:04]}  exd5 {[%clk 0:02:14]} 25. cxd5 {[%clk 0:01:03]}  Nd3 {[%clk 0:02:15]} 26. dxc6 {[%clk 0:00:56]}  bxc6 {[%clk 0:02:16]} 27. Kf1 {[%clk 0:00:54]}  Rb8 {[%clk 0:02:10]} 28. Rxa7 {[%clk 0:00:28]}  Rxb3 {[%clk 0:02:10]} 29. Ne4 {[%clk 0:00:29]}  Nf4 {[%clk 0:02:00]} 30. Ra1 {[%clk 0:00:26]}  Rb4 {[%clk 0:01:51]} 31. Nd2 {[%clk 0:00:18]}  Rb2 {[%clk 0:01:48]} 32. Nc4 {[%clk 0:00:19]}  Rc2 {[%clk 0:01:47]} 33. Ne3 {[%clk 0:00:19]}  Rc3 {[%clk 0:01:47]} 34. g3 {[%clk 0:00:19]}  Nd3 {[%clk 0:01:45]} 35. Rd1 {[%clk 0:00:18]}  g6 {[%clk 0:01:43]} 36. Ke2 {[%clk 0:00:19]}  Ne5 {[%clk 0:01:41]} 37. Rd8+ {[%clk 0:00:19]}  Kg7 {[%clk 0:01:42]} 38. f4 {[%clk 0:00:15]}  Nc4 {[%clk 0:01:42]} 39. Nxc4 {[%clk 0:00:14]}  Rxc4 {[%clk 0:01:43]} 40. Rc8 {[%clk 0:00:12]}  Rc2+ {[%clk 0:01:42]} 41. Kf3 {[%clk 0:00:12]}  Kf6 {[%clk 0:01:41]} 42. h3 {[%clk 0:00:11]}  h5 {[%clk 0:01:41]} 43. g4 {[%clk 0:00:11]}  Rc3+ {[%clk 0:01:42]} 44. Ke4 {[%clk 0:00:10]}  h4 {[%clk 0:01:42]} 45. g5+ {[%clk 0:00:05]}  Ke6 {[%clk 0:01:42]} 46. Re8+ {[%clk 0:00:04]}  Kd7 {[%clk 0:01:42]} 47. Rf8 {[%clk 0:00:04]}  Ke7 {[%clk 0:01:43]} 48. Rc8 {[%clk 0:00:05]}  c5 {[%clk 0:01:36]} 49. Ke5 {[%clk 0:00:03]}  Re3+ {[%clk 0:01:36]} 50. Kd5 {[%clk 0:00:03]}  Rxh3 {[%clk 0:01:37]} 51. Rxc5 {[%clk 0:00:03]}  Re3 {[%clk 0:01:36]} 52. Rc8 {[%clk 0:00:02]}  h3 {[%clk 0:01:32]} 53. Rh8 {[%clk 0:00:02]}  f5 {[%clk 0:01:29]} 54. Kd4 {[%clk 0:00:02]}  Re4+ {[%clk 0:01:28]} 55. Kd5 {[%clk 0:00:03]}  Re3 {[%clk 0:01:26]} 56. Rh7+ {[%clk 0:00:03]}  Kf8 {[%clk 0:01:25]} 57. Kd4 {[%clk 0:00:03]}  Ra3 {[%clk 0:01:22]} 58. Ke5 {[%clk 0:00:03]}  Kg8 {[%clk 0:01:23]} 59. Rh4 {[%clk 0:00:02]}  Kg7 {[%clk 0:01:23]} 60. Ke6 {[%clk 0:00:02]}  Rf3 {[%clk 0:01:14]} 61. Ke5 {[%clk 0:00:03]}  Re3+ {[%clk 0:01:14]} 62. Kd5 {[%clk 0:00:03]}  Kg8 {[%clk 0:01:09]} 63. Kd6 {[%clk 0:00:03]}  Rf3 {[%clk 0:01:05]} 64. Ke5 {[%clk 0:00:04]}  Kg7 {[%clk 0:01:05]} 65. Kd5 {[%clk 0:00:03]}  h2 {[%clk 0:00:49]} 66. Rxh2 {[%clk 0:00:02]}  Rxf4 {[%clk 0:00:49]} 67. Rg2 {[%clk 0:00:01]}  Kf7 {[%clk 0:00:43]} 68. Ra2 {[%clk 0:00:02]}  Rg4 {[%clk 0:00:44]} 69. Ra7+ {[%clk 0:00:02]}  Kg8 {[%clk 0:00:42]} 70. Ke6 {[%clk 0:00:02]}  Rxg5 {[%clk 0:00:42]} 71. Kf6 {[%clk 0:00:03]}  Rg1 {[%clk 0:00:40]} 72. Rg7+ {[%clk 0:00:03]}  Kf8 {[%clk 0:00:39]} 73. Rh7 {[%clk 0:00:03]}  Ke8 {[%clk 0:00:39]} 74. Ke6 {[%clk 0:00:02]}  Kd8 {[%clk 0:00:39]} 75. Kd6 {[%clk 0:00:01]}  Kc8 {[%clk 0:00:40]} 76. Rg7 {[%clk 0:00:02]}  f4 {[%clk 0:00:39]} 77. Kc6 {[%clk 0:00:02]}  Kb8 {[%clk 0:00:31]} 78. Kb6 {[%clk 0:00:03]}  Rb1+ {[%clk 0:00:31]} 79. Kc6 {[%clk 0:00:03]}  f3 {[%clk 0:00:32]} 80. Rg8+ {[%clk 0:00:02]}  Ka7 {[%clk 0:00:31]} 81. Rg7+ {[%clk 0:00:02]}  Ka6 {[%clk 0:00:31]} 82. Rxg6 {[%clk 0:00:03]}  f2 {[%clk 0:00:31]} 83. Kc5+ {[%clk 0:00:03]}  Ka5 {[%clk 0:00:31]} 84. Rg8 {[%clk 0:00:04]}  Rc1+ {[%clk 0:00:31]} 0-1


[Site "https://www.chess.com"]

[Event "Titled Tuesday Blitz January 17 Early 2023"]
[White "Demin, Vladimir"]
[Black "Bortnyk, Mykola"]
[WhiteFideId "4167457"]
[BlackFideId "14120836"]
[WhiteElo "2430"]
[BlackElo "2425"]
[Result "1-0"]
[Round "02"]
[TimeControl "180+2"]
[Date "2023.01.17"]
[WhiteClock "0:00:44"]
[BlackClock "0:00:36"]

1. d4 {[%clk 0:03:00]}  d5 {[%clk 0:02:58]} 2. Nc3 {[%clk 0:03:00]}  Nf6 {[%clk 0:02:57]} 3. Bf4 {[%clk 0:03:01]}  c5 {[%clk 0:02:56]} 4. e4 {[%clk 0:03:01]}  Nxe4 {[%clk 0:02:52]} 5. Nxe4 {[%clk 0:03:00]}  dxe4 {[%clk 0:02:52]} 6. dxc5 {[%clk 0:03:01]}  Qa5+ {[%clk 0:02:53]} 7. c3 {[%clk 0:03:01]}  Qxc5 {[%clk 0:02:53]} 8. Qa4+ {[%clk 0:03:02]}  Bd7 {[%clk 0:02:54]} 9. Qxe4 {[%clk 0:03:03]}  Bc6 {[%clk 0:02:54]} 10. Qc2 {[%clk 0:03:01]}  e5 {[%clk 0:02:51]} 11. Be3 {[%clk 0:03:01]}  Qa5 {[%clk 0:02:49]} 12. Nf3 {[%clk 0:02:58]}  Nd7 {[%clk 0:02:48]} 13. Bc4 {[%clk 0:02:55]}  Be7 {[%clk 0:02:44]} 14. Bg5 {[%clk 0:02:45]}  Bxf3 {[%clk 0:02:28]} 15. Bxe7 {[%clk 0:02:20]}  Bxg2 {[%clk 0:02:28]} 16. O-O-O {[%clk 0:02:02]}  Kxe7 {[%clk 0:02:14]} 17. Qf5 {[%clk 0:01:34]}  Bc6 {[%clk 0:01:59]} 18. Qxf7+ {[%clk 0:01:29]}  Kd8 {[%clk 0:01:58]} 19. Rxd7+ {[%clk 0:01:22]}  Bxd7 {[%clk 0:01:51]} 20. Rd1 {[%clk 0:01:23]}  Kc8 {[%clk 0:01:40]} 21. Rxd7 {[%clk 0:01:13]}  Qb6 {[%clk 0:01:20]} 22. Be6 {[%clk 0:00:55]}  Kb8 {[%clk 0:01:17]} 23. Bd5 {[%clk 0:00:54]}  Qh6+ {[%clk 0:01:16]} 24. Kd1 {[%clk 0:00:46]}  Kc8 {[%clk 0:00:36]} 25. Rc7+ {[%clk 0:00:44]} 1-0


[Site "https://www.chess.com"]

[Event "Titled Tuesday Blitz January 17 Early 2023"]
[White "Tarlabasi, Emirhan"]
[Black "Narayanan, Srinath"]
[WhiteFideId "6350275"]
[BlackFideId "5018420"]
[WhiteElo "2300"]
[BlackElo "2559"]
[Result "0-1"]
[Round "02"]
[TimeControl "180+2"]
[Date "2023.01.17"]
[WhiteClock "0:00:12"]
[BlackClock "0:00:48"]

1. d4 {[%clk 0:03:00]}  Nf6 {[%clk 0:02:40]} 2. c4 {[%clk 0:03:01]}  e6 {[%clk 0:02:40]} 3. Nf3 {[%clk 0:03:01]}  d5 {[%clk 0:02:39]} 4. Nc3 {[%clk 0:02:59]}  Bb4 {[%clk 0:02:38]} 5. e3 {[%clk 0:02:56]}  O-O {[%clk 0:02:36]} 6. a3 {[%clk 0:02:56]}  Bxc3+ {[%clk 0:02:34]} 7. bxc3 {[%clk 0:02:57]}  b6 {[%clk 0:02:34]} 8. Qc2 {[%clk 0:02:56]}  Ba6 {[%clk 0:02:32]} 9. Ne5 {[%clk 0:02:36]}  c5 {[%clk 0:02:28]} 10. Bd3 {[%clk 0:02:31]}  Qc7 {[%clk 0:02:24]} 11. cxd5 {[%clk 0:02:21]}  Bxd3 {[%clk 0:02:25]} 12. Qxd3 {[%clk 0:02:18]}  exd5 {[%clk 0:02:26]} 13. O-O {[%clk 0:01:49]}  Nc6 {[%clk 0:02:25]} 14. Nf3 {[%clk 0:01:29]}  Rfe8 {[%clk 0:02:22]} 15. c4 {[%clk 0:01:15]}  cxd4 {[%clk 0:02:18]} 16. cxd5 {[%clk 0:01:11]}  Ne5 {[%clk 0:02:16]} 17. Qxd4 {[%clk 0:00:55]}  Rad8 {[%clk 0:02:14]} 18. Nxe5 {[%clk 0:00:48]}  Rxd5 {[%clk 0:02:12]} 19. Qf4 {[%clk 0:00:45]}  Qxe5 {[%clk 0:02:04]} 20. Qxe5 {[%clk 0:00:45]}  Rdxe5 {[%clk 0:02:05]} 21. Bb2 {[%clk 0:00:45]}  R5e6 {[%clk 0:02:05]} 22. Rfd1 {[%clk 0:00:44]}  h5 {[%clk 0:02:03]} 23. a4 {[%clk 0:00:43]}  Ne4 {[%clk 0:02:01]} 24. a5 {[%clk 0:00:42]}  b5 {[%clk 0:01:55]} 25. Bd4 {[%clk 0:00:42]}  a6 {[%clk 0:01:55]} 26. Rac1 {[%clk 0:00:40]}  Nd6 {[%clk 0:01:55]} 27. Rc5 {[%clk 0:00:25]}  g6 {[%clk 0:01:49]} 28. Rd5 {[%clk 0:00:23]}  Nc4 {[%clk 0:01:47]} 29. Bc3 {[%clk 0:00:24]}  f6 {[%clk 0:01:34]} 30. h3 {[%clk 0:00:24]}  Kf7 {[%clk 0:01:34]} 31. Rd7+ {[%clk 0:00:25]}  R8e7 {[%clk 0:01:34]} 32. Rd8 {[%clk 0:00:25]}  Rb7 {[%clk 0:01:33]} 33. Bb4 {[%clk 0:00:26]}  Ne5 {[%clk 0:01:29]} 34. Rf8+ {[%clk 0:00:24]}  Kg7 {[%clk 0:01:29]} 35. Rc8 {[%clk 0:00:23]}  g5 {[%clk 0:01:22]} 36. Rdd8 {[%clk 0:00:22]}  Kg6 {[%clk 0:01:21]} 37. e4 {[%clk 0:00:20]}  Nc6 {[%clk 0:01:09]} 38. Bc3 {[%clk 0:00:20]}  Nxd8 {[%clk 0:01:08]} 39. Rxd8 {[%clk 0:00:20]}  b4 {[%clk 0:01:08]} 40. Bb2 {[%clk 0:00:20]}  Rb5 {[%clk 0:01:00]} 41. f3 {[%clk 0:00:20]}  Rxa5 {[%clk 0:00:58]} 42. Rd4 {[%clk 0:00:20]}  Rb5 {[%clk 0:00:59]} 43. h4 {[%clk 0:00:20]}  a5 {[%clk 0:00:57]} 44. hxg5 {[%clk 0:00:20]}  fxg5 {[%clk 0:00:58]} 45. Rd7 {[%clk 0:00:20]}  a4 {[%clk 0:00:57]} 46. g4 {[%clk 0:00:14]}  hxg4 {[%clk 0:00:53]} 47. fxg4 {[%clk 0:00:14]}  a3 {[%clk 0:00:51]} 48. Bd4 {[%clk 0:00:12]}  b3 {[%clk 0:00:49]} 49. Rg7+ {[%clk 0:00:12]}  Kh6 {[%clk 0:00:49]} 50. Rg8 {[%clk 0:00:12]}  b2 {[%clk 0:00:46]} 51. Rh8+ {[%clk 0:00:12]}  Kg6 {[%clk 0:00:47]} 52. Rg8+ {[%clk 0:00:12]}  Kh7 {[%clk 0:00:47]} 53. Rh8+ {[%clk 0:00:11]}  Kg6 {[%clk 0:00:47]} 54. Rg8+ {[%clk 0:00:12]}  Kf7 {[%clk 0:00:48]} 55. Rg7+ {[%clk 0:00:12]}  Kf8 {[%clk 0:00:48]} 0-1


[Site "https://www.chess.com"]

[Event "Titled Tuesday Blitz January 17 Early 2023"]
[White "Dardha, Daniel"]
[Black "Tasev, Dejan"]
[WhiteFideId "240990"]
[BlackFideId "936618"]
[WhiteElo "2631"]
[BlackElo "2205"]
[Result "1-0"]
[Round "02"]
[TimeControl "180+2"]
[Date "2023.01.17"]
[WhiteClock "0:01:41"]
[BlackClock "0:00:29"]

1. d4 {[%clk 0:03:00]}  e6 {[%clk 0:02:59]} 2. c4 {[%clk 0:02:57]}  f5 {[%clk 0:02:59]} 3. Nc3 {[%clk 0:02:55]}  Nf6 {[%clk 0:02:59]} 4. Nf3 {[%clk 0:02:54]}  d5 {[%clk 0:02:59]} 5. Qc2 {[%clk 0:02:51]}  c6 {[%clk 0:02:59]} 6. Bf4 {[%clk 0:02:49]}  Be7 {[%clk 0:02:59]} 7. e3 {[%clk 0:02:48]}  O-O {[%clk 0:02:58]} 8. h3 {[%clk 0:02:49]}  Ne4 {[%clk 0:02:58]} 9. Ne5 {[%clk 0:02:47]}  Nd7 {[%clk 0:02:57]} 10. Be2 {[%clk 0:02:47]}  Nxe5 {[%clk 0:02:56]} 11. Bxe5 {[%clk 0:02:48]}  Bf6 {[%clk 0:02:53]} 12. Bh2 {[%clk 0:02:48]}  Bd7 {[%clk 0:02:48]} 13. Rd1 {[%clk 0:02:47]}  Be8 {[%clk 0:02:44]} 14. O-O {[%clk 0:02:46]}  g5 {[%clk 0:02:38]} 15. f3 {[%clk 0:02:44]}  Nd6 {[%clk 0:02:36]} 16. e4 {[%clk 0:02:44]}  fxe4 {[%clk 0:02:29]} 17. Bxd6 {[%clk 0:02:36]}  Qxd6 {[%clk 0:02:27]} 18. fxe4 {[%clk 0:02:36]}  Bg7 {[%clk 0:02:08]} 19. e5 {[%clk 0:02:33]}  Rxf1+ {[%clk 0:01:59]} 20. Rxf1 {[%clk 0:02:33]}  Qe7 {[%clk 0:01:57]} 21. Bd3 {[%clk 0:02:32]}  dxc4 {[%clk 0:01:43]} 22. Bxh7+ {[%clk 0:02:08]}  Kh8 {[%clk 0:01:42]} 23. Ne4 {[%clk 0:02:03]}  Rd8 {[%clk 0:01:35]} 24. Nd6 {[%clk 0:01:55]}  Rxd6 {[%clk 0:01:26]} 25. exd6 {[%clk 0:01:55]}  Bxd4+ {[%clk 0:01:16]} 26. Kh1 {[%clk 0:01:55]}  Qxd6 {[%clk 0:01:16]} 27. Bg6 {[%clk 0:01:50]}  Bd7 {[%clk 0:00:49]} 28. Qe2 {[%clk 0:01:43]}  Qe7 {[%clk 0:00:29]} 29. Qh5+ {[%clk 0:01:41]}  Kg8 {[%clk 0:00:29]} 30. Rf7 {[%clk 0:01:41]} 1-0


[Site "https://www.chess.com"]

[Event "Titled Tuesday Blitz January 17 Early 2023"]
[White "Zierk, Steven"]
[Black "Kochetov, Andrey"]
[WhiteFideId "2034255"]
[BlackFideId "24130532"]
[WhiteElo "2488"]
[BlackElo "2165"]
[Result "1-0"]
[Round "02"]
[TimeControl "180+2"]
[Date "2023.01.17"]
[WhiteClock "0:00:12"]
[BlackClock "0:00:01"]

1. e4 {[%clk 0:03:00]}  c5 {[%clk 0:02:59]} 2. Nf3 {[%clk 0:03:01]}  d6 {[%clk 0:02:59]} 3. d4 {[%clk 0:03:01]}  cxd4 {[%clk 0:03:00]} 4. Nxd4 {[%clk 0:03:02]}  Nf6 {[%clk 0:03:01]} 5. Nc3 {[%clk 0:03:02]}  Nc6 {[%clk 0:03:01]} 6. Bg5 {[%clk 0:03:02]}  e6 {[%clk 0:03:02]} 7. Qd2 {[%clk 0:03:02]}  a6 {[%clk 0:03:02]} 8. O-O-O {[%clk 0:03:02]}  Bd7 {[%clk 0:02:59]} 9. f4 {[%clk 0:03:00]}  h6 {[%clk 0:02:56]} 10. Bh4 {[%clk 0:02:59]}  Nxe4 {[%clk 0:02:55]} 11. Qe1 {[%clk 0:02:59]}  Nf6 {[%clk 0:02:27]} 12. Nf5 {[%clk 0:02:58]}  Qc7 {[%clk 0:02:14]} 13. Bxf6 {[%clk 0:02:03]}  gxf6 {[%clk 0:02:07]} 14. Nd5 {[%clk 0:01:40]}  Qd8 {[%clk 0:02:03]} 15. Qc3 {[%clk 0:01:17]}  e5 {[%clk 0:01:55]} 16. Nde3 {[%clk 0:01:05]}  exf4 {[%clk 0:01:27]} 17. Nd5 {[%clk 0:01:04]}  Bxf5 {[%clk 0:01:06]} 18. Nxf6+ {[%clk 0:01:03]}  Ke7 {[%clk 0:01:06]} 19. Nd5+ {[%clk 0:01:01]}  Kd7 {[%clk 0:00:55]} 20. Qxh8 {[%clk 0:01:00]}  Rc8 {[%clk 0:00:46]} 21. Bd3 {[%clk 0:00:55]}  Bxd3 {[%clk 0:00:22]} 22. Rxd3 {[%clk 0:00:56]}  Ne5 {[%clk 0:00:19]} 23. Rc3 {[%clk 0:00:40]}  Rxc3 {[%clk 0:00:14]} 24. Nxc3 {[%clk 0:00:41]}  Qe7 {[%clk 0:00:06]} 25. Nd5 {[%clk 0:00:34]}  Qe6 {[%clk 0:00:04]} 26. Nxf4 {[%clk 0:00:31]}  Qe7 {[%clk 0:00:03]} 27. Kb1 {[%clk 0:00:20]}  h5 {[%clk 0:00:02]} 28. Nxh5 {[%clk 0:00:18]}  f5 {[%clk 0:00:02]} 29. Qf6 {[%clk 0:00:18]}  Qe8 {[%clk 0:00:02]} 30. Qxf5+ {[%clk 0:00:18]}  Kc7 {[%clk 0:00:02]} 31. Nf6 {[%clk 0:00:18]}  Qf7 {[%clk 0:00:02]} 32. Rf1 {[%clk 0:00:18]}  Bg7 {[%clk 0:00:03]} 33. Ne4 {[%clk 0:00:17]}  Qe7 {[%clk 0:00:02]} 34. Qh7 {[%clk 0:00:16]}  Kb8 {[%clk 0:00:02]} 35. Ng3 {[%clk 0:00:15]}  Nc4 {[%clk 0:00:02]} 36. Qg8+ {[%clk 0:00:13]}  Ka7 {[%clk 0:00:02]} 37. Qxc4 {[%clk 0:00:13]}  Qe5 {[%clk 0:00:03]} 38. Qc3 {[%clk 0:00:13]}  Qb5 {[%clk 0:00:01]} 39. Qxg7 {[%clk 0:00:12]} 1-0


[Site "https://www.chess.com"]

[Event "Titled Tuesday Blitz January 17 Early 2023"]
[White "Grandelius, Nils"]
[Black "Czernek, Tymon"]
[WhiteFideId "1710400"]
[BlackFideId "1199510"]
[WhiteElo "2664"]
[BlackElo "2314"]
[Result "0-1"]
[Round "02"]
[TimeControl "180+2"]
[Date "2023.01.17"]
[WhiteClock "0:00:26"]
[BlackClock "0:00:13"]

1. e4 {[%clk 0:03:00]}  c5 {[%clk 0:02:59]} 2. Be2 {[%clk 0:03:00]}  Nc6 {[%clk 0:02:54]} 3. f4 {[%clk 0:03:00]}  e6 {[%clk 0:02:52]} 4. Nf3 {[%clk 0:02:59]}  d6 {[%clk 0:02:48]} 5. O-O {[%clk 0:02:55]}  Nf6 {[%clk 0:02:48]} 6. d3 {[%clk 0:02:51]}  Be7 {[%clk 0:02:48]} 7. Kh1 {[%clk 0:02:52]}  O-O {[%clk 0:02:48]} 8. Be3 {[%clk 0:02:52]}  b5 {[%clk 0:02:47]} 9. c3 {[%clk 0:02:48]}  Bb7 {[%clk 0:02:47]} 10. Nbd2 {[%clk 0:02:49]}  Rc8 {[%clk 0:02:35]} 11. d4 {[%clk 0:02:47]}  cxd4 {[%clk 0:02:34]} 12. cxd4 {[%clk 0:02:48]}  a6 {[%clk 0:02:33]} 13. a3 {[%clk 0:02:48]}  Na5 {[%clk 0:02:29]} 14. Bd3 {[%clk 0:02:23]}  Nc4 {[%clk 0:02:27]} 15. Bxc4 {[%clk 0:02:23]}  bxc4 {[%clk 0:02:28]} 16. Qc2 {[%clk 0:02:22]}  Qa5 {[%clk 0:02:09]} 17. Bf2 {[%clk 0:02:02]}  c3 {[%clk 0:02:00]} 18. bxc3 {[%clk 0:01:57]}  Qxc3 {[%clk 0:01:42]} 19. Qb1 {[%clk 0:01:51]}  Ba8 {[%clk 0:01:37]} 20. Bh4 {[%clk 0:01:46]}  Rb8 {[%clk 0:01:25]} 21. Qe1 {[%clk 0:01:44]}  Rfe8 {[%clk 0:01:15]} 22. e5 {[%clk 0:01:30]}  dxe5 {[%clk 0:01:13]} 23. fxe5 {[%clk 0:01:31]}  Nd5 {[%clk 0:01:06]} 24. Bxe7 {[%clk 0:01:31]}  Rxe7 {[%clk 0:01:07]} 25. Qh4 {[%clk 0:01:31]}  h6 {[%clk 0:01:05]} 26. Ne4 {[%clk 0:01:30]}  Qe3 {[%clk 0:01:02]} 27. Rae1 {[%clk 0:01:09]}  Qf4 {[%clk 0:01:00]} 28. Qh3 {[%clk 0:01:08]}  Ne3 {[%clk 0:00:55]} 29. Nf6+ {[%clk 0:00:40]}  gxf6 {[%clk 0:00:51]} 30. exf6 {[%clk 0:00:41]}  Nxf1 {[%clk 0:00:14]} 31. fxe7 {[%clk 0:00:38]}  Bxf3 {[%clk 0:00:12]} 32. Rxf1 {[%clk 0:00:37]}  Bg4 {[%clk 0:00:13]} 33. Rxf4 {[%clk 0:00:26]}  Rb1+ {[%clk 0:00:13]} 0-1


[Site "https://www.chess.com"]

[Event "Titled Tuesday Blitz January 17 Early 2023"]
[White "Fernandez Garcia, Gumersindo"]
[Black "Le, Tuan Minh"]
[WhiteFideId "24516740"]
[BlackFideId "12401153"]
[WhiteElo "2160"]
[BlackElo "2542"]
[Result "1/2-1/2"]
[Round "02"]
[TimeControl "180+2"]
[Date "2023.01.17"]
[WhiteClock "0:01:30"]
[BlackClock "0:01:30"]

1. e4 {[%clk 0:02:58]}  c5 {[%clk 0:03:00]} 2. c3 {[%clk 0:02:54]}  Nf6 {[%clk 0:03:00]} 3. e5 {[%clk 0:02:52]}  Nd5 {[%clk 0:03:00]} 4. d4 {[%clk 0:02:52]}  cxd4 {[%clk 0:03:01]} 5. Nf3 {[%clk 0:02:51]}  Nc6 {[%clk 0:03:01]} 6. cxd4 {[%clk 0:02:52]}  d6 {[%clk 0:03:01]} 7. Bc4 {[%clk 0:02:52]}  dxe5 {[%clk 0:03:02]} 8. dxe5 {[%clk 0:02:49]}  Ndb4 {[%clk 0:03:01]} 9. Qxd8+ {[%clk 0:02:44]}  Nxd8 {[%clk 0:03:02]} 10. Na3 {[%clk 0:02:43]}  a6 {[%clk 0:02:59]} 11. Bd2 {[%clk 0:02:39]}  e6 {[%clk 0:02:59]} 12. Ke2 {[%clk 0:02:34]}  b5 {[%clk 0:02:58]} 13. Bb3 {[%clk 0:02:33]}  Bb7 {[%clk 0:02:58]} 14. Rhd1 {[%clk 0:02:29]}  Be7 {[%clk 0:02:49]} 15. Rac1 {[%clk 0:02:25]}  Ndc6 {[%clk 0:02:45]} 16. Be3 {[%clk 0:02:19]}  Na5 {[%clk 0:02:18]} 17. Nc2 {[%clk 0:02:14]}  Nxb3 {[%clk 0:02:15]} 18. axb3 {[%clk 0:02:14]}  Nd5 {[%clk 0:02:09]} 19. Bd2 {[%clk 0:02:11]}  Rc8 {[%clk 0:02:05]} 20. g3 {[%clk 0:02:05]}  O-O {[%clk 0:02:00]} 21. Ne3 {[%clk 0:02:05]}  f6 {[%clk 0:01:54]} 22. exf6 {[%clk 0:01:52]}  Bxf6 {[%clk 0:01:53]} 23. Rxc8 {[%clk 0:01:47]}  Rxc8 {[%clk 0:01:53]} 24. Nxd5 {[%clk 0:01:47]}  Bxd5 {[%clk 0:01:53]} 25. Rc1 {[%clk 0:01:46]}  Rxc1 {[%clk 0:01:49]} 26. Bxc1 {[%clk 0:01:47]}  Bxb3 {[%clk 0:01:49]} 27. Ke3 {[%clk 0:01:46]}  Bd5 {[%clk 0:01:45]} 28. Nd4 {[%clk 0:01:46]}  e5 {[%clk 0:01:42]} 29. Ne2 {[%clk 0:01:44]}  Kf7 {[%clk 0:01:41]} 30. f4 {[%clk 0:01:44]}  Ke6 {[%clk 0:01:38]} 31. fxe5 {[%clk 0:01:44]}  Kxe5 {[%clk 0:01:39]} 32. Nf4 {[%clk 0:01:42]}  Bc6 {[%clk 0:01:35]} 33. Bd2 {[%clk 0:01:42]}  Kf5 {[%clk 0:01:34]} 34. b4 {[%clk 0:01:42]}  Kg4 {[%clk 0:01:31]} 35. Be1 {[%clk 0:01:33]}  g5 {[%clk 0:01:29]} 36. h3+ {[%clk 0:01:32]}  Kf5 {[%clk 0:01:29]} 37. g4+ {[%clk 0:01:30]}  Ke5 {[%clk 0:01:29]} 38. Bc3+ {[%clk 0:01:30]}  Kd6 {[%clk 0:01:30]} 39. Bxf6 {[%clk 0:01:29]}  gxf4+ {[%clk 0:01:30]} 40. Kxf4 {[%clk 0:01:30]} 1/2-1/2


[Site "https://www.chess.com"]